fUSD/lending_fUSD_20250308
["ID","MTS","AMOUNT","RATE_DAILY","PERIOD"]
[355657178,1741443044190,-500.0,8.767e-05,2]
[355657179,1741443044200,-1023.75,8.767e-05,2]
[355657180,1741443044210,-1788.71,8.767e-05,2]
[355657181,1741443044219,-538.82,8.767e-05,2]
[355657182,1741443044229,-917.24,8.767e-05,2]
[355657183,1741443044238,-684.24,8.767e-05,2]
[355657184,1741443044247,-500.0,8.767e-05,2]
[355657185,1741443044257,-758.36,8.767e-05,2]
[355657186,1741443044267,-563.39,8.767e-05,2]
[355657187,1741443044277,-1058.88,8.767e-05,2]
[355657188,1741443044287,-500.0,8.767e-05,2]
[355657189,1741443044297,-637.39,8.767e-05,2]
[355657190,1741443044306,-500.0,8.767e-05,2]
[355657191,1741443044316,-648.49,8.767e-05,2]
[355657192,1741443044325,-500.0,8.767e-05,2]
[355657193,1741443044335,-531.55,8.767e-05,2]
[355657194,1741443044343,-723.58,8.767e-05,2]
[355657195,1741443044352,-500.0,8.767e-05,2]
[355657196,1741443044361,-500.0,8.767e-05,2]
[355657197,1741443044371,-780.28,8.767e-05,2]
[355657198,1741443044379,-500.0,8.767e-05,2]
[355657199,1741443044389,-570.62,8.767e-05,2]
[355657200,1741443044399,-605.01,8.767e-05,2]
[355657201,1741443044408,-1157.7,8.767e-05,2]
[355657202,1741443044418,-500.0,8.767e-05,2]
[355657203,1741443044427,-500.0,8.767e-05,2]
[355657204,1741443044436,-854.81,8.767e-05,2]
[355657205,1741443044446,-500.0,8.767e-05,2]
[355657206,1741443044456,-1240.07,8.767e-05,2]
[355657207,1741443044466,-500.0,8.767e-05,2]
[355657208,1741443044476,-623.79,8.767e-05,2]
[355657209,1741443044486,-843.06,8.767e-05,2]
[355657210,1741443044496,-958.76,8.767e-05,2]
[355657211,1741443044505,-628.52,8.767e-05,2]
[355657212,1741443044515,-500.0,8.767e-05,2]
[355657213,1741443044524,-505.1126979,8.767e-05,2]
[355657214,1741443044534,-574.65,8.767e-05,2]
[355657215,1741443044543,-506.63,8.767e-05,2]
[355657216,1741443044553,-500.0,8.767e-05,2]
[355657217,1741443044562,-679.56,8.767e-05,2]
[355657218,1741443044572,-500.0,8.767e-05,2]
[355657219,1741443044581,-851.33,8.767e-05,2]
[355657220,1741443044591,-1061.72,8.767e-05,2]
[355657221,1741443044601,-500.0,8.767e-05,2]
[355657222,1741443044610,-500.0,8.767e-05,2]
[355657223,1741443044619,-198.27904671,8.767e-05,2]
[355657224,1741443044629,-500.0,8.767e-05,2]
[355657225,1741443044638,-500.0,8.767e-05,2]
[355657226,1741443044648,-966.78,8.767e-05,2]
[355657227,1741443044657,-851.53,8.767e-05,2]
[355657228,1741443044667,-500.0,8.767e-05,2]
[355657229,1741443044676,-673.96,8.767e-05,2]
[355657230,1741443044686,-500.0,8.767e-05,2]
[355657231,1741443044695,-500.0,8.767e-05,2]
[355657232,1741443044705,-1036.71,8.767e-05,2]
[355657233,1741443044714,-500.0,8.767e-05,2]
[355657234,1741443044723,-500.0,8.767e-05,2]
[355657235,1741443044733,-500.0,8.767e-05,2]
[355657236,1741443044742,-695.04,8.767e-05,2]
[355657237,1741443044752,-739.48,8.767e-05,2]
[355657238,1741443044762,-500.0,8.767e-05,2]
[355657239,1741443044771,-500.0,8.767e-05,2]
[355657240,1741443044782,-500.0,8.767e-05,2]
[355657241,1741443044791,-500.0,8.767e-05,2]
[355657242,1741443044800,-500.0,8.767e-05,2]
[355657243,1741443044809,-513.98,8.767e-05,2]
[355657244,1741443044818,-653.93,8.767e-05,2]
[355657245,1741443044828,-870.9,8.767e-05,2]
[355657246,1741443044837,-681.29,8.767e-05,2]
[355657247,1741443044847,-933.52,8.767e-05,2]
[355657248,1741443044856,-500.0,8.767e-05,2]
[355657249,1741443044866,-500.0,8.767e-05,2]
[355657250,1741443044875,-500.0,8.767e-05,2]
[355657251,1741443044884,-566.17,8.767e-05,2]
[355657252,1741443044893,-760.4,8.767e-05,2]
[355657253,1741443044903,-1186.16,8.767e-05,2]
[355657254,1741443044912,-531.76,8.767e-05,2]
[355657255,1741443044922,-500.0,8.767e-05,2]
[355657256,1741443044932,-758.39,8.767e-05,2]
[355657257,1741443044941,-500.0,8.767e-05,2]
[355657258,1741443044950,-500.0,8.767e-05,2]
[355657259,1741443044960,-557.4,8.767e-05,2]
[355657260,1741443044969,-1238.95,8.767e-05,2]
[355657261,1741443044978,-1214.84,8.767e-05,2]
[355657262,1741443044990,-1401.54,8.767e-05,2]
[355657263,1741443044999,-545.4,8.767e-05,2]
[355657264,1741443045009,-1372.1,8.767e-05,2]
[355657265,1741443045018,-500.0,8.767e-05,2]
[355657266,1741443045027,-1420.4,8.767e-05,2]
[355657267,1741443045036,-628.38,8.767e-05,2]
[355657268,1741443045045,-500.0,8.767e-05,2]
[355657269,1741443045054,-500.0,8.767e-05,2]
[355657270,1741443045064,-889.98,8.767e-05,2]
[355657271,1741443045073,-500.0,8.767e-05,2]
[355657272,1741443045083,-986.01,8.767e-05,2]
[355657273,1741443045096,-1398.18,8.767e-05,2]
[355657274,1741443045106,-500.0,8.767e-05,2]
[355657275,1741443045115,-500.0,8.767e-05,2]
[355657276,1741443045125,-500.0,8.767e-05,2]
[355657277,1741443045135,-534.5,8.767e-05,2]
[355657278,1741443045144,-500.0,8.767e-05,2]
[355657279,1741443045155,-500.0,8.767e-05,2]
[355657280,1741443045165,-544.92,8.767e-05,2]
[355657281,1741443045175,-919.16,8.767e-05,2]
[355657282,1741443045185,-1207.01,8.767e-05,2]
[355657283,1741443045195,-1344.19,8.767e-05,2]
[355657284,1741443045205,-500.0,8.767e-05,2]
[355657285,1741443045216,-500.0,8.767e-05,2]
[355657286,1741443045227,-500.0,8.767e-05,2]
[355657287,1741443045237,-1516.04,8.767e-05,2]
[355657288,1741443045248,-1219.17,8.767e-05,2]
[355657289,1741443045258,-733.09,8.767e-05,2]
[355657290,1741443045269,-1350.84,8.767e-05,2]
[355657291,1741443045279,-1187.04,8.767e-05,2]
[355657292,1741443045290,-508.22,8.767e-05,2]
[355657293,1741443045301,-815.81,8.767e-05,2]
[355657294,1741443045311,-793.26,8.767e-05,2]
[355657295,1741443045322,-500.0,8.767e-05,2]
[355657296,1741443045332,-643.27,8.767e-05,2]
[355657297,1741443045342,-500.0,8.767e-05,2]
[355657298,1741443045352,-1669.47,8.767e-05,2]
[355657299,1741443045362,-500.0,8.767e-05,2]
[355657300,1741443045371,-1790.88,8.767e-05,2]
[355657301,1741443045381,-525.59,8.767e-05,2]
[355657302,1741443045391,-1360.38,8.767e-05,2]
[355657303,1741443045400,-708.22,8.767e-05,2]
[355657304,1741443045409,-500.0,8.767e-05,2]
[355657305,1741443045419,-12559.69,8.767e-05,2]
[355657306,1741443045429,-894.22,8.767e-05,2]
[355657307,1741443045438,-2549.64,8.767e-05,2]
[355657308,1741443045447,-582.23,8.767e-05,2]
[355657309,1741443045457,-775.56,8.767e-05,2]
[355657310,1741443045466,-500.0,8.767e-05,2]
[355657311,1741443045475,-500.0,8.767e-05,2]
[355657312,1741443045484,-2448.24,8.767e-05,2]
[355657313,1741443045494,-500.0,8.767e-05,2]
[355657314,1741443045504,-7013.5,8.767e-05,2]
[355657315,1741443045513,-918.85,8.767e-05,2]
[355657316,1741443045523,-1190.86,8.767e-05,2]
[355657317,1741443045532,-839.16,8.767e-05,2]
[355657318,1741443045541,-1966.66,8.767e-05,2]
[355657319,1741443045550,-500.0,8.767e-05,2]
[355657320,1741443045560,-542.9,8.767e-05,2]
[355657321,1741443045569,-1216.66,8.767e-05,2]
[355657322,1741443045578,-3097.05,8.767e-05,2]
[355657323,1741443045587,-6572.37,8.767e-05,2]
[355657324,1741443045596,-500.0,8.767e-05,2]
[355657325,1741443045605,-500.0,8.767e-05,2]
[355657326,1741443045614,-3024.79,8.767e-05,2]
[355657327,1741443045624,-1118.79,8.767e-05,2]
[355657328,1741443045633,-3322.53,8.767e-05,2]
[355657329,1741443045648,-5739.66,8.767e-05,2]
[355657330,1741443045657,-1387.26,8.767e-05,2]
[355657331,1741443045666,-500.0,8.767e-05,2]
[355657332,1741443045677,-3291.17,8.767e-05,2]
[355657333,1741443045686,-500.0,8.767e-05,2]
[355657334,1741443045696,-500.0,8.767e-05,2]
[355657335,1741443045706,-827.89,8.767e-05,2]
[355657336,1741443045715,-4366.54,8.767e-05,2]
[355657337,1741443045725,-2261.26,8.767e-05,2]
[355657338,1741443045735,-586.83,8.767e-05,2]
[355657339,1741443045744,-26214.54,8.767e-05,2]
[355657341,1741443045753,-1959.82,8.767e-05,2]
[355657343,1741443045763,-2373.0,8.767e-05,2]
[355657345,1741443045771,-1178.21,8.767e-05,2]
[355657346,1741443045781,-500.0,8.767e-05,2]
[355657348,1741443045790,-875.1,8.767e-05,2]
[355657350,1741443045800,-694.74,8.767e-05,2]
[355657351,1741443045810,-500.0,8.767e-05,2]
[355657355,1741443045822,-2417.9,8.767e-05,2]
[355657358,1741443045831,-1440.82,8.767e-05,2]
[355657359,1741443045841,-2650.14,8.767e-05,2]
[355657360,1741443045850,-618.25,8.767e-05,2]
[355657362,1741443045859,-716.18,8.767e-05,2]
[355657364,1741443045868,-2743.59,8.767e-05,2]
[355657367,1741443045877,-510.66,8.767e-05,2]
[355657369,1741443045887,-1069.98,8.767e-05,2]
[355657371,1741443045896,-3910.16,8.767e-05,2]
[355657372,1741443045905,-920.83,8.767e-05,2]
[355657374,1741443045914,-1495.45,8.767e-05,2]
[355657376,1741443045923,-1851.0,8.767e-05,2]
[355657378,1741443045932,-745.02,8.767e-05,2]
[355657380,1741443045941,-500.0,8.767e-05,2]
[355657382,1741443045951,-668.21,8.767e-05,2]
[355657384,1741443045960,-3098.62,8.767e-05,2]
[355657386,1741443045969,-1004.41,8.767e-05,2]
[355657388,1741443045978,-500.0,8.767e-05,2]
[355657389,1741443046166,-3488.24,8.767e-05,2]
[355657390,1741443046178,-1721.31,8.767e-05,2]
[355657391,1741443046188,-2252.59,8.767e-05,2]
[355657392,1741443046198,-8501.84,8.767e-05,2]
[355657393,1741443046208,-862.44,8.767e-05,2]
[355657394,1741443046218,-1078.14,8.767e-05,2]
[355657395,1741443046228,-500.0,8.767e-05,2]
[355657396,1741443046238,-885.21,8.767e-05,2]
[355657397,1741443046247,-2630.22,8.767e-05,2]
[355657398,1741443046256,-2081.54,8.767e-05,2]
[355657399,1741443046265,-690.71,8.767e-05,2]
[355657400,1741443046274,-4065.32,8.767e-05,2]
[355657401,1741443046283,-519.29,8.767e-05,2]
[355657402,1741443046292,-2084.55,8.767e-05,2]
[355657403,1741443046301,-4644.52,8.767e-05,2]
[355657404,1741443046310,-799.87,8.767e-05,2]
[355657405,1741443046319,-589.49,8.767e-05,2]
[355657406,1741443046333,-4156.29,8.767e-05,2]
[355657407,1741443046342,-767.74,8.767e-05,2]
[355657408,1741443046356,-1886.77,8.767e-05,2]
[355657409,1741443046365,-1725.43,8.767e-05,2]
[355657410,1741443046375,-500.0,8.767e-05,2]
[355657411,1741443046384,-1698.35,8.767e-05,2]
[355657412,1741443046393,-500.0,8.767e-05,2]
[355657413,1741443046403,-3160.81,8.767e-05,2]
[355657414,1741443046413,-1242.18,8.767e-05,2]
[355657415,1741443046422,-555.82,8.767e-05,2]
[355657416,1741443046432,-1646.8,8.767e-05,2]
[355657417,1741443046441,-500.0,8.767e-05,2]
[355657418,1741443046451,-6451.11,8.767e-05,2]
[355657419,1741443046460,-500.0,8.767e-05,2]
[355657420,1741443046469,-1917.52,8.767e-05,2]
[355657421,1741443046479,-500.0,8.767e-05,2]
[355657422,1741443046489,-1833.4,8.767e-05,2]
[355657423,1741443046499,-1440.65,8.767e-05,2]
[355657424,1741443046508,-10074.21,8.767e-05,2]
[355657425,1741443046517,-500.0,8.767e-05,2]
[355657426,1741443046527,-1484.97,8.767e-05,2]
[355657427,1741443046537,-910.58,8.767e-05,2]
[355657428,1741443046547,-854.44,8.767e-05,2]
[355657429,1741443046556,-500.0,8.767e-05,2]
[355657430,1741443046566,-1085.59,8.767e-05,2]
[355657431,1741443046575,-786.84,8.767e-05,2]
[355657432,1741443046584,-3065.61,8.767e-05,2]
[355657433,1741443046593,-500.0,8.767e-05,2]
[355657434,1741443046603,-3916.11,8.767e-05,2]
[355657435,1741443046612,-3110.92,8.767e-05,2]
[355657436,1741443046621,-500.0,8.767e-05,2]
[355657437,1741443046631,-2070.62,8.767e-05,2]
[355657438,1741443046640,-1877.02,8.767e-05,2]
[355657439,1741443046649,-340.46810333,8.767e-05,2]
[355657440,1741443046659,-500.0,8.767e-05,2]
[355657441,1741443046668,-2600.68,8.767e-05,2]
[355657442,1741443046677,-1300.92,8.767e-05,2]
[355657443,1741443046687,-1518.1,8.767e-05,2]
[355657444,1741443046697,-1783.42,8.767e-05,2]
[355657445,1741443046706,-17366.31,8.767e-05,2]
[355657446,1741443046715,-1110.41,8.767e-05,2]
[355657447,1741443046725,-3606.8,8.767e-05,2]
[355657448,1741443046734,-500.0,8.767e-05,2]
[355657449,1741443046743,-504.4307065,8.767e-05,2]
[355657450,1741443046753,-1428.23,8.767e-05,2]
[355657451,1741443046762,-1604.73,8.767e-05,2]
[355657452,1741443046772,-2488.11,8.767e-05,2]
[355657453,1741443046781,-4380.18,8.767e-05,2]
[355657454,1741443046791,-1902.18,8.767e-05,2]
[355657455,1741443046800,-2382.88,8.767e-05,2]
[355657456,1741443046809,-500.0,8.767e-05,2]
[355657457,1741443046818,-2615.48,8.767e-05,2]
[355657458,1741443046827,-1056.55,8.767e-05,2]
[355657459,1741443046839,-558.68,8.767e-05,2]
[355657460,1741443046849,-4241.28,8.767e-05,2]
[355657461,1741443046859,-1854.0,8.767e-05,2]
[355657462,1741443046869,-500.0,8.767e-05,2]
[355657463,1741443046879,-1252.52,8.767e-05,2]
[355657464,1741443046889,-500.0,8.767e-05,2]
[355657465,1741443046899,-4734.27,8.767e-05,2]
[355657466,1741443046908,-4064.24,8.767e-05,2]
[355657467,1741443046919,-1857.06,8.767e-05,2]
[355657468,1741443046929,-500.0,8.767e-05,2]
[355657469,1741443046939,-500.0,8.767e-05,2]
[355657470,1741443046949,-3230.72,8.767e-05,2]
[355657471,1741443046959,-3462.55,8.767e-05,2]
[355657472,1741443046968,-500.0,8.767e-05,2]
[355657473,1741443046978,-1025.23,8.767e-05,2]
[355657474,1741443046994,-500.0,8.767e-05,2]
[355657475,1741443047003,-1206.67,8.767e-05,2]
[355657476,1741443047013,-8849.92,8.767e-05,2]
[355657477,1741443047023,-5008.55,8.767e-05,2]
[355657478,1741443047034,-1496.91,8.767e-05,2]
[355657479,1741443047043,-2070.31,8.767e-05,2]
[355657480,1741443047053,-500.0,8.767e-05,2]
[355657481,1741443047063,-500.0,8.767e-05,2]
[355657482,1741443047073,-9292.35,8.767e-05,2]
[355657483,1741443047083,-42303.85,8.767e-05,2]
[355657484,1741443047092,-1320.92,8.767e-05,2]
[355657485,1741443047101,-1380.62,8.767e-05,2]
[355657486,1741443047110,-678.39,8.767e-05,2]
[355657487,1741443047121,-1061.9,8.767e-05,2]
[355657488,1741443047130,-500.0,8.767e-05,2]
[355657489,1741443047139,-1829.16,8.767e-05,2]
[355657490,1741443047149,-500.0,8.767e-05,2]
[355657491,1741443047158,-16762.17,8.767e-05,2]
[355657492,1741443047168,-9258.24,8.767e-05,2]
[355657493,1741443047178,-1142.2,8.767e-05,2]
[355657494,1741443047187,-1882.17,8.767e-05,2]
[355657495,1741443047198,-2252.9,8.767e-05,2]
[355657496,1741443047208,-3242.24,8.767e-05,2]
[355657497,1741443047218,-2112.24,8.767e-05,2]
[355657498,1741443047228,-3163.21,8.767e-05,2]
[355657499,1741443047237,-4429.17,8.767e-05,2]
[355657500,1741443047247,-2892.84,8.767e-05,2]
[355657501,1741443047256,-500.0,8.767e-05,2]
[355657502,1741443047266,-617.39,8.767e-05,2]
[355657503,1741443047275,-9621.9,8.767e-05,2]
[355657504,1741443047285,-801.54,8.767e-05,2]
[355657505,1741443047295,-565.35,8.767e-05,2]
[355657506,1741443047304,-2649.31,8.767e-05,2]
[355657507,1741443047314,-504.74,8.767e-05,2]
[355657508,1741443047323,-500.0,8.767e-05,2]
[355657509,1741443047332,-2954.68,8.767e-05,2]
[355657510,1741443047340,-1030.66,8.767e-05,2]
[355657511,1741443047350,-596.27,8.767e-05,2]
[355657512,1741443047360,-1000.0,8.8e-05,2]
[355657513,1741443047369,-250.0,8.8e-05,2]
[355657514,1741443047379,-250.0,8.8e-05,2]
[355657515,1741443047388,-250.0,8.8e-05,2]
[355657516,1741443047397,-250.0,8.8e-05,2]
[355657517,1741443047406,-250.0,8.8e-05,2]
[355657518,1741443047416,-250.0,8.8e-05,2]
[355657519,1741443047426,-250.0,8.8e-05,2]
[355657520,1741443047435,-250.0,8.8e-05,2]
[355657521,1741443047444,-250.0,8.8e-05,2]
[355657522,1741443047454,-250.0,8.8e-05,2]
[355657523,1741443047463,-250.0,8.8e-05,2]
[355657524,1741443047472,-250.0,8.8e-05,2]
[355657525,1741443047482,-250.0,8.8e-05,2]
[355657526,1741443047499,-250.0,8.8e-05,2]
[355657527,1741443047516,-250.0,8.8e-05,2]
[355657528,1741443047529,-301.7,8.8e-05,2]
[355657529,1741443047545,-800.0,8.8e-05,3]
[355657530,1741443047561,-165.46,8.822e-05,2]
[355657531,1741443047577,-1000.0,8.9e-05,2]
[355657532,1741443047592,-800.0,8.9e-05,3]
[355657533,1741443047604,-550.0,8.931e-05,2]
[355657534,1741443047620,-150.0,8.931e-05,2]
[355657535,1741443047636,-150.0,8.931e-05,2]
[355657536,1741443047651,-550.0,8.931e-05,2]
[355657537,1741443047667,-433.39831495,8.938e-05,2]
[355657538,1741443047684,-255.0,8.953e-05,2]
[355657539,1741443047699,-1000.0,9e-05,2]
[355657540,1741443047714,-900.0,9e-05,2]
[355657541,1741443047730,-200.0,9e-05,2]
[355657542,1741443047745,-200.0,9e-05,2]
[355657543,1741443047758,-200.0,9e-05,2]
[355657544,1741443047771,-800.0,9e-05,3]
[355657545,1741443047784,-2612.13,9.04e-05,2]
[355657546,1741443047800,-4041.32,9.04e-05,2]
[355657547,1741443047811,-4041.32,9.04e-05,2]
[355657548,1741443047824,-500.0,9.041e-05,2]
[355657549,1741443047840,-500.0,9.041e-05,2]
[355657550,1741443047852,-560.61,9.041e-05,2]
[355657551,1741443047864,-520.96,9.041e-05,2]
[355657552,1741443047877,-350.0,9.041e-05,2]
[355657553,1741443047890,-512.35,9.041e-05,2]
[355657554,1741443047903,-629.25,9.041e-05,2]
[355657555,1741443047915,-581.53,9.041e-05,2]
[355657556,1741443047928,-500.0,9.041e-05,7]
[355657557,1741443047941,-500.0,9.041e-05,2]
[355657558,1741443047954,-500.0,9.041e-05,2]
[355657559,1741443047967,-545.15,9.041e-05,2]
[355657560,1741443047981,-500.0,9.041e-05,2]
[355657561,1741443047997,-500.0,9.041e-05,2]
[355657562,1741443048010,-500.0,9.041e-05,2]
[355657563,1741443048023,-500.0,9.041e-05,2]
[355657564,1741443048035,-500.0,9.041e-05,2]
[355657565,1741443048048,-768.03,9.041e-05,2]
[355657566,1741443048061,-524.49,9.041e-05,2]
[355657567,1741443048074,-814.58,9.041e-05,2]
[355657568,1741443048088,-500.0,9.041e-05,2]
[355657569,1741443048101,-500.0,9.041e-05,2]
[355657570,1741443048115,-1260.83,9.041e-05,2]
[355657571,1741443048129,-615.62,9.041e-05,2]
[355657572,1741443048142,-500.0,9.041e-05,2]
[355657573,1741443048155,-552.32,9.041e-05,2]
[355657574,1741443048169,-500.0,9.041e-05,2]
[355657575,1741443048183,-660.81,9.041e-05,2]
[355657576,1741443048196,-754.13,9.041e-05,2]
[355657577,1741443048209,-727.614314,9.041e-05,2]
[355657578,1741443048223,-1102.71,9.041e-05,2]
[355657579,1741443048241,-500.0,9.041e-05,2]
[355657580,1741443048255,-500.0,9.041e-05,2]
[355657581,1741443048269,-653.54,9.041e-05,2]
[355657582,1741443048282,-559.78,9.041e-05,2]
[355657583,1741443048295,-513.83,9.041e-05,2]
[355657584,1741443048309,-500.0,9.041e-05,2]
[355657585,1741443048321,-500.0,9.041e-05,2]
[355657586,1741443048335,-803.72,9.041e-05,2]
[355657587,1741443048348,-563.72,9.041e-05,2]
[355657588,1741443048362,-500.0,9.041e-05,2]
[355657589,1741443048375,-500.0,9.041e-05,2]
[355657590,1741443048388,-500.0,9.041e-05,2]
[355657591,1741443048401,-761.99,9.041e-05,2]
[355657592,1741443048413,-500.0,9.041e-05,2]
[355657593,1741443048426,-433.052602,9.041e-05,2]
[355657594,1741443048439,-592.61,9.041e-05,2]
[355657595,1741443048452,-786.73,9.041e-05,2]
[355657596,1741443048466,-1010.45,9.041e-05,2]
[355657597,1741443048479,-729.33,9.041e-05,2]
[355657598,1741443048493,-544.51,9.041e-05,2]
[355657599,1741443048506,-500.0,9.041e-05,2]
[355657600,1741443048519,-734.85,9.041e-05,2]
[355657601,1741443048532,-500.0,9.041e-05,2]
[355657602,1741443048545,-500.0,9.041e-05,2]
[355657603,1741443048558,-651.04,9.041e-05,2]
[355657604,1741443048571,-500.0,9.041e-05,2]
[355657605,1741443048584,-1249.74,9.041e-05,2]
[355657606,1741443048598,-511.29,9.041e-05,2]
[355657607,1741443048612,-500.0,9.041e-05,2]
[355657608,1741443048626,-500.0,9.041e-05,2]
[355657609,1741443048640,-500.0,9.041e-05,2]
[355657610,1741443048652,-500.0,9.041e-05,2]
[355657611,1741443048667,-739.08,9.041e-05,2]
[355657612,1741443048681,-901.97,9.041e-05,2]
[355657613,1741443048695,-506.97,9.041e-05,2]
[355657614,1741443048709,-700.65,9.041e-05,2]
[355657615,1741443048722,-500.0,9.041e-05,2]
[355657616,1741443048735,-500.0,9.041e-05,2]
[355657617,1741443048749,-746.52,9.041e-05,2]
[355657618,1741443048762,-500.0,9.041e-05,2]
[355657619,1741443048776,-1023.75,9.041e-05,2]
[355657620,1741443048789,-1788.71,9.041e-05,2]
[355657621,1741443048803,-538.82,9.041e-05,2]
[355657622,1741443048815,-917.24,9.041e-05,2]
[355657623,1741443048829,-684.24,9.041e-05,2]
[355657624,1741443048841,-500.0,9.041e-05,2]
[355657625,1741443048854,-758.36,9.041e-05,2]
[355657626,1741443048868,-563.39,9.041e-05,2]
[355657627,1741443048883,-1058.88,9.041e-05,2]
[355657628,1741443048896,-500.0,9.041e-05,2]
[355657629,1741443048911,-637.39,9.041e-05,2]
[355657630,1741443048924,-500.0,9.041e-05,2]
[355657631,1741443048939,-648.49,9.041e-05,2]
[355657632,1741443048953,-500.0,9.041e-05,2]
[355657633,1741443048967,-531.55,9.041e-05,2]
[355657634,1741443048981,-723.58,9.041e-05,2]
[355657635,1741443048996,-500.0,9.041e-05,2]
[355657636,1741443049010,-500.0,9.041e-05,2]
[355657637,1741443049024,-780.28,9.041e-05,2]
[355657638,1741443049038,-500.0,9.041e-05,2]
[355657639,1741443049051,-570.62,9.041e-05,2]
[355657640,1741443049064,-1157.7,9.041e-05,2]
[355657641,1741443049078,-605.01,9.041e-05,2]
[355657642,1741443049092,-500.0,9.041e-05,2]
[355657643,1741443049106,-500.0,9.041e-05,2]
[355657644,1741443049119,-854.81,9.041e-05,2]
[355657645,1741443049133,-171.89956248,9.041e-05,2]
[355657646,1741443049147,-1240.07,9.041e-05,2]
[355657647,1741443049161,-500.0,9.041e-05,2]
[355657648,1741443049175,-623.79,9.041e-05,2]
[355657649,1741443049190,-843.06,9.041e-05,2]
[355657650,1741443049203,-958.76,9.041e-05,2]
[355657651,1741443049218,-628.52,9.041e-05,2]
[355657652,1741443049232,-500.0,9.041e-05,2]
[355657653,1741443049245,-574.65,9.041e-05,2]
[355657654,1741443049259,-506.63,9.041e-05,2]
[355657655,1741443049273,-514.41514649,9.041e-05,2]
[355657656,1741443049286,-679.56,9.041e-05,2]
[355657657,1741443049300,-500.0,9.041e-05,2]
[355657658,1741443049313,-851.33,9.041e-05,2]
[355657659,1741443049327,-1061.72,9.041e-05,2]
[355657660,1741443049522,-500.0,9.041e-05,2]
[355657661,1741443049611,-500.0,9.041e-05,2]
[355657662,1741443049624,-500.0,9.041e-05,2]
[355657663,1741443049634,-500.0,9.041e-05,2]
[355657664,1741443049643,-966.78,9.041e-05,2]
[355657665,1741443049653,-851.53,9.041e-05,2]
[355657666,1741443049662,-500.0,9.041e-05,2]
[355657667,1741443049672,-673.96,9.041e-05,2]
[355657668,1741443049682,-500.0,9.041e-05,2]
[355657669,1741443049692,-500.0,9.041e-05,2]
[355657670,1741443049701,-1036.71,9.041e-05,2]
[355657671,1741443049711,-500.0,9.041e-05,2]
[355657672,1741443049720,-500.0,9.041e-05,2]
[355657673,1741443049729,-500.0,9.041e-05,2]
[355657674,1741443049739,-695.04,9.041e-05,2]
[355657675,1741443049748,-739.48,9.041e-05,2]
[355657676,1741443049758,-500.0,9.041e-05,2]
[355657677,1741443049767,-500.0,9.041e-05,2]
[355657678,1741443049776,-500.0,9.041e-05,2]
[355657679,1741443049786,-500.0,9.041e-05,2]
[355657680,1741443049795,-500.0,9.041e-05,2]
[355657681,1741443049804,-513.98,9.041e-05,2]
[355657682,1741443049814,-653.93,9.041e-05,2]
[355657683,1741443049823,-870.9,9.041e-05,2]
[355657684,1741443049832,-681.29,9.041e-05,2]
[355657685,1741443049841,-933.52,9.041e-05,2]
[355657686,1741443049849,-500.0,9.041e-05,2]
[355657687,1741443049859,-500.0,9.041e-05,2]
[355657688,1741443049868,-500.0,9.041e-05,2]
[355657689,1741443049877,-566.17,9.041e-05,2]
[355657690,1741443049887,-760.4,9.041e-05,2]
[355657691,1741443049896,-1186.16,9.041e-05,2]
[355657692,1741443049905,-531.76,9.041e-05,2]
[355657693,1741443049915,-265.18154982,9.041e-05,2]
[355657694,1741443049924,-758.39,9.041e-05,2]
[355657695,1741443049935,-500.0,9.041e-05,2]
[355657696,1741443049945,-500.0,9.041e-05,2]
[355657697,1741443049954,-557.4,9.041e-05,2]
[355657698,1741443049965,-1238.95,9.041e-05,2]
[355657699,1741443049975,-1214.84,9.041e-05,2]
[355657700,1741443049985,-1401.54,9.041e-05,2]
[355657701,1741443049998,-545.4,9.041e-05,2]